{"text_format":"1","workbook":"xlsx","n_sheets":2,"sheets":["Payroll Input","stubs_template"],"not_rendered":{"charts":0,"images":0,"macros":1,"external_links":0,"defined_names":7,"comments":0,"pivot_tables":0},"unopened":[],"bounds":{"document_bytes":16777216,"sheet_cells":100000,"rows_first":2000,"rows_last":500,"rows_between":2000,"halvings":0,"cell_chars":16384,"cell_head_chars":4096},"cells_cut":0,"cells_raw":0,"read":"whole","date_system":"1900"}

{"sheet":"Payroll Input","index":0,"n_rows":13,"n_cols":24,"rows_kept":13,"cut":false,"hidden":false,"merged":[]}
[null,"PAYROLL CALCULATOR",null,null,null,null,null,null,null,null,"PERIOD ENDING:",41372,null,"COMPANY NAME:",null,"ADVENTURE WORKS"]
[]
[null,"ID","Employee Name","Reg Hours Worked","Vacation Hours","Sick\nHours","Overtime Hours","Overtime Rate","Gross\nPay","Taxes and Ded's","Other\nDed's","Net Pay"," ","Hourly Wage","Tax\nStatus","Federal\nAllow.","State\nTax","Federal\nIncome Tax","Soc. Security\nTax","Medicare\nTax","Total Taxes Withheld","Insurance Deduction","Other Reg. Deduction","Total Reg.\nDeductions"]
[null,1001,"Tony Smith",50,5,1,null,null,{"$f":"SUM(Employees[[#This Row],[Reg Hours Worked]:[Sick\nHours]])*Employees[[#This Row],[Hourly Wage]]+Employees[[#This Row],[Overtime Hours]]*Employees[[#This Row],[Overtime Rate]]","v":560},{"$f":"Employees[[#This Row],[Gross\nPay]]*Employees[[#This Row],[Total Taxes Withheld]] + Employees[[#This Row],[Total Reg.\nDeductions]]","v":273.08000000000004},20,{"$f":"Employees[[#This Row],[Gross\nPay]]-Employees[[#This Row],[Taxes and Ded''s]]-Employees[[#This Row],[Other\nDed''s]]","v":266.91999999999996},null,10,1,4,2.3E-2,0.28000000000000003,6.3E-2,1.4500000000000001E-2,{"$f":"SUM(Employees[[#This Row],[State\nTax]:[Medicare\nTax]])","v":0.38050000000000006},20,40,{"$f":"SUM(Employees[[#This Row],[Insurance Deduction]:[Other Reg. Deduction]])","v":60}]
[null,1002,"David Jones",40,null,null,null,null,{"$f":"SUM(Employees[[#This Row],[Reg Hours Worked]:[Sick\nHours]])*Employees[[#This Row],[Hourly Wage]]+Employees[[#This Row],[Overtime Hours]]*Employees[[#This Row],[Overtime Rate]]","v":320},{"$f":"Employees[[#This Row],[Gross\nPay]]*Employees[[#This Row],[Total Taxes Withheld]] + Employees[[#This Row],[Total Reg.\nDeductions]]","v":131.76000000000002},null,{"$f":"Employees[[#This Row],[Gross\nPay]]-Employees[[#This Row],[Taxes and Ded''s]]-Employees[[#This Row],[Other\nDed''s]]","v":188.23999999999998},null,8,1,1,2.3E-2,0.28000000000000003,6.3E-2,1.4500000000000001E-2,{"$f":"SUM(Employees[[#This Row],[State\nTax]:[Medicare\nTax]])","v":0.38050000000000006},0,10,{"$f":"SUM(Employees[[#This Row],[Insurance Deduction]:[Other Reg. Deduction]])","v":10}]
[null,1003,"Denise Smith",35,3,null,null,null,{"$f":"SUM(Employees[[#This Row],[Reg Hours Worked]:[Sick\nHours]])*Employees[[#This Row],[Hourly Wage]]+Employees[[#This Row],[Overtime Hours]]*Employees[[#This Row],[Overtime Rate]]","v":532},{"$f":"Employees[[#This Row],[Gross\nPay]]*Employees[[#This Row],[Total Taxes Withheld]] + Employees[[#This Row],[Total Reg.\nDeductions]]","v":240.42600000000004},null,{"$f":"Employees[[#This Row],[Gross\nPay]]-Employees[[#This Row],[Taxes and Ded''s]]-Employees[[#This Row],[Other\nDed''s]]","v":291.57399999999996},null,14,1,3,2.3E-2,0.28000000000000003,6.3E-2,1.4500000000000001E-2,{"$f":"SUM(Employees[[#This Row],[State\nTax]:[Medicare\nTax]])","v":0.38050000000000006},18,20,{"$f":"SUM(Employees[[#This Row],[Insurance Deduction]:[Other Reg. Deduction]])","v":38}]
[null,1008,"Sebastien Motte",50,5,1,null,null,{"$f":"SUM(Employees[[#This Row],[Reg Hours Worked]:[Sick\nHours]])*Employees[[#This Row],[Hourly Wage]]+Employees[[#This Row],[Overtime Hours]]*Employees[[#This Row],[Overtime Rate]]","v":1120},{"$f":"Employees[[#This Row],[Gross\nPay]]*Employees[[#This Row],[Total Taxes Withheld]] + Employees[[#This Row],[Total Reg.\nDeductions]]","v":441.16000000000008},null,{"$f":"Employees[[#This Row],[Gross\nPay]]-Employees[[#This Row],[Taxes and Ded''s]]-Employees[[#This Row],[Other\nDed''s]]","v":678.83999999999992},null,20,1,0,2.3E-2,0.28000000000000003,6.3E-2,1.4500000000000001E-2,{"$f":"SUM(Employees[[#This Row],[State\nTax]:[Medicare\nTax]])","v":0.38050000000000006},15,null,{"$f":"SUM(Employees[[#This Row],[Insurance Deduction]:[Other Reg. Deduction]])","v":15}]
[null,1011,"Isabelle Scemla",40,null,null,2,15,{"$f":"SUM(Employees[[#This Row],[Reg Hours Worked]:[Sick\nHours]])*Employees[[#This Row],[Hourly Wage]]+Employees[[#This Row],[Overtime Hours]]*Employees[[#This Row],[Overtime Rate]]","v":430},{"$f":"Employees[[#This Row],[Gross\nPay]]*Employees[[#This Row],[Total Taxes Withheld]] + Employees[[#This Row],[Total Reg.\nDeductions]]","v":223.61500000000004},null,{"$f":"Employees[[#This Row],[Gross\nPay]]-Employees[[#This Row],[Taxes and Ded''s]]-Employees[[#This Row],[Other\nDed''s]]","v":206.38499999999996},null,10,1,0,2.3E-2,0.28000000000000003,6.3E-2,1.4500000000000001E-2,{"$f":"SUM(Employees[[#This Row],[State\nTax]:[Medicare\nTax]])","v":0.38050000000000006},20,40,{"$f":"SUM(Employees[[#This Row],[Insurance Deduction]:[Other Reg. Deduction]])","v":60}]
[null,1012,"David Bristol",40,5,1,null,null,{"$f":"SUM(Employees[[#This Row],[Reg Hours Worked]:[Sick\nHours]])*Employees[[#This Row],[Hourly Wage]]+Employees[[#This Row],[Overtime Hours]]*Employees[[#This Row],[Overtime Rate]]","v":552},{"$f":"Employees[[#This Row],[Gross\nPay]]*Employees[[#This Row],[Total Taxes Withheld]] + Employees[[#This Row],[Total Reg.\nDeductions]]","v":270.03600000000006},null,{"$f":"Employees[[#This Row],[Gross\nPay]]-Employees[[#This Row],[Taxes and Ded''s]]-Employees[[#This Row],[Other\nDed''s]]","v":281.96399999999994},null,12,1,4,2.3E-2,0.28000000000000003,6.3E-2,1.4500000000000001E-2,{"$f":"SUM(Employees[[#This Row],[State\nTax]:[Medicare\nTax]])","v":0.38050000000000006},20,40,{"$f":"SUM(Employees[[#This Row],[Insurance Deduction]:[Other Reg. Deduction]])","v":60}]
[null,1025,"Anne Weiler",36,null,2,1,18,{"$f":"SUM(Employees[[#This Row],[Reg Hours Worked]:[Sick\nHours]])*Employees[[#This Row],[Hourly Wage]]+Employees[[#This Row],[Overtime Hours]]*Employees[[#This Row],[Overtime Rate]]","v":474},{"$f":"Employees[[#This Row],[Gross\nPay]]*Employees[[#This Row],[Total Taxes Withheld]] + Employees[[#This Row],[Total Reg.\nDeductions]]","v":225.35700000000003},25,{"$f":"Employees[[#This Row],[Gross\nPay]]-Employees[[#This Row],[Taxes and Ded''s]]-Employees[[#This Row],[Other\nDed''s]]","v":223.64299999999997},null,12,1,2,2.3E-2,0.28000000000000003,6.3E-2,1.4500000000000001E-2,{"$f":"SUM(Employees[[#This Row],[State\nTax]:[Medicare\nTax]])","v":0.38050000000000006},25,20,{"$f":"SUM(Employees[[#This Row],[Insurance Deduction]:[Other Reg. Deduction]])","v":45}]
[null,1032,"Luka Abrus",40,5,1,null,null,{"$f":"SUM(Employees[[#This Row],[Reg Hours Worked]:[Sick\nHours]])*Employees[[#This Row],[Hourly Wage]]+Employees[[#This Row],[Overtime Hours]]*Employees[[#This Row],[Overtime Rate]]","v":460},{"$f":"Employees[[#This Row],[Gross\nPay]]*Employees[[#This Row],[Total Taxes Withheld]] + Employees[[#This Row],[Total Reg.\nDeductions]]","v":175.03000000000003},50,{"$f":"Employees[[#This Row],[Gross\nPay]]-Employees[[#This Row],[Taxes and Ded''s]]-Employees[[#This Row],[Other\nDed''s]]","v":234.96999999999997},null,10,1,3,2.3E-2,0.28000000000000003,6.3E-2,1.4500000000000001E-2,{"$f":"SUM(Employees[[#This Row],[State\nTax]:[Medicare\nTax]])","v":0.38050000000000006},null,null,{"$f":"SUM(Employees[[#This Row],[Insurance Deduction]:[Other Reg. Deduction]])","v":0}]
[null,1049,"David Ludwig",40,1,null,null,null,{"$f":"SUM(Employees[[#This Row],[Reg Hours Worked]:[Sick\nHours]])*Employees[[#This Row],[Hourly Wage]]+Employees[[#This Row],[Overtime Hours]]*Employees[[#This Row],[Overtime Rate]]","v":615},{"$f":"Employees[[#This Row],[Gross\nPay]]*Employees[[#This Row],[Total Taxes Withheld]] + Employees[[#This Row],[Total Reg.\nDeductions]]","v":259.00750000000005},23,{"$f":"Employees[[#This Row],[Gross\nPay]]-Employees[[#This Row],[Taxes and Ded''s]]-Employees[[#This Row],[Other\nDed''s]]","v":332.99249999999995},null,15,1,2,2.3E-2,0.28000000000000003,6.3E-2,1.4500000000000001E-2,{"$f":"SUM(Employees[[#This Row],[State\nTax]:[Medicare\nTax]])","v":0.38050000000000006},25,null,{"$f":"SUM(Employees[[#This Row],[Insurance Deduction]:[Other Reg. Deduction]])","v":25}]
[null,"Totals",{"$f":"SUBTOTAL(103,Employees[Employee Name])","v":9},{"$f":"SUBTOTAL(109,Employees[Reg Hours Worked])","v":371},{"$f":"SUBTOTAL(109,Employees[Vacation Hours])","v":24},{"$f":"SUBTOTAL(109,Employees[Sick\nHours])","v":6},{"$f":"SUBTOTAL(109,Employees[Overtime Hours])","v":3},null,{"$f":"SUBTOTAL(109,Employees[Gross\nPay])","v":5063},{"$f":"SUBTOTAL(109,Employees[Taxes and Ded''s])","v":2239.4715000000001},{"$f":"SUBTOTAL(109,Employees[Other\nDed''s])","v":118},{"$f":"SUBTOTAL(109,Employees[Net Pay])","v":2705.5284999999994},null,null,null,null,null,null,null,null,null,{"$f":"SUBTOTAL(109,Employees[Insurance Deduction])","v":143},{"$f":"SUBTOTAL(109,Employees[Other Reg. Deduction])","v":170},{"$f":"SUBTOTAL(109,Employees[Total Reg.\nDeductions])","v":313}]

{"sheet":"stubs_template","index":1,"n_rows":47,"n_cols":13,"rows_kept":47,"cut":false,"hidden":true,"merged":[[2,7,2,8],[14,7,14,8],[26,7,26,8],[38,7,38,8],[38,11,38,12],[26,11,26,12],[14,11,14,12],[2,11,2,12],[2,3,2,4],[14,3,14,4],[26,3,26,4],[38,3,38,4],[44,2,44,3],[8,2,8,3],[9,2,9,3],[45,2,45,3],[32,2,32,3],[33,2,33,3],[20,2,20,3],[21,2,21,3]]}
[]
[null,null,{"$f":"CompanyName","v":"ADVENTURE WORKS"}]
[null,null,"PERIOD",{"$f":"PeriodEnding","v":41372},null,null,"NAME",{"$f":"IFERROR(INDEX(Employees[Employee Name],Stub),\"\")","v":"Tony Smith"},null,null,"EMPLOYEE ID",{"$f":"IFERROR(INDEX(Employees[ID],Stub),\"\")","v":1001}]
[null,null,"Tax Status",null,{"$f":"IFERROR(INDEX(Employees[Tax\nStatus],Stub),\"\")","v":1},null,"Federal Allowance (From W-4)",null,{"$f":"IFERROR(INDEX(Employees[Federal\nAllow.],Stub),\"\")","v":4},null,"Hours Worked",null,{"$f":"IFERROR(INDEX(Employees[Reg Hours Worked],Stub),\"\")","v":50}]
[null,null,"Hourly Rate",null,{"$f":"IFERROR(INDEX(Employees[Hourly Wage],Stub),\"\")","v":10},null,"Overtime Rate",null,{"$f":"IFERROR(INDEX(Employees[Overtime Rate],Stub),\"\")","v":0},null,"Sick Hours",null,{"$f":"IFERROR(INDEX(Employees[Sick\nHours],Stub),\"\")","v":1}]
[null,null,"Social Security Tax",null,{"$f":"IFERROR(INDEX(Employees[Soc. Security\nTax],Stub)  *  INDEX(Employees[Gross\nPay],Stub),\"\")","v":35.28},null,"Federal Income Tax ",null,{"$f":"IFERROR(INDEX(Employees[Federal\nIncome Tax],Stub)  *  INDEX(Employees[Gross\nPay],Stub),\"\")","v":156.80000000000001},null,"Vacation Hours",null,{"$f":"IFERROR(INDEX(Employees[Vacation Hours],Stub),\"\")","v":5}]
[null,null,"Medicare Tax ",null,{"$f":"IFERROR(INDEX(Employees[Medicare\nTax],Stub)  *  INDEX(Employees[Gross\nPay],Stub),\"\")","v":8.120000000000001},null,"State Tax ",null,{"$f":"IFERROR(INDEX(Employees[State\nTax],Stub)  *  INDEX(Employees[Gross\nPay],Stub),\"\")","v":12.879999999999999},null,"Overtime Hours",null,{"$f":"IFERROR(INDEX(Employees[Overtime Hours],Stub),\"\")","v":0}]
[null,null,"Insurance Deduction",null,{"$f":"IFERROR(INDEX(Employees[Insurance Deduction],Stub),\"\")","v":20},null,"Other Regular Deduction",null,{"$f":"IFERROR(INDEX(Employees[Other Reg. Deduction],Stub),\"\")","v":40},null,"Gross Pay",null,{"$f":"IFERROR(INDEX(Employees[Gross\nPay],Stub),\"\")","v":560}]
[null,null,"Total Taxes and",null,{"$f":"IFERROR(INDEX(Employees[Taxes and Ded''s],Stub),\"\")","v":273.08000000000004},null,"Other Deduction",null,{"$f":"IFERROR(INDEX(Employees[Other\nDed''s],Stub),\"\")","v":20},null,"Total Taxes and Deductions ",null,{"$f":"IFERROR(INDEX(Employees[Taxes and Ded''s],Stub)  +  INDEX(Employees[Other\nDed''s],Stub),\"\")","v":293.08000000000004}]
[null,null,"Regular Deductions "]
[null,null,null,null,null,null,null,null,null,null,"NET PAY",null,{"$f":"IFERROR(INDEX(Employees[Net Pay],Stub),\"\")","v":266.91999999999996}]
[]
[]
[null,null,{"$f":"CompanyName","v":"ADVENTURE WORKS"}]
[null,null,"PERIOD",{"$f":"PeriodEnding","v":41372},null,null,"NAME",{"$f":"IFERROR(INDEX(Employees[Employee Name],Stub),\"\")","v":"David Jones"},null,null,"EMPLOYEE ID",{"$f":"IFERROR(INDEX(Employees[ID],Stub),\"\")","v":1002}]
[null,null,"Tax Status",null,{"$f":"IFERROR(INDEX(Employees[Tax\nStatus],Stub),\"\")","v":1},null,"Federal Allowance (From W-4)",null,{"$f":"IFERROR(INDEX(Employees[Federal\nAllow.],Stub),\"\")","v":1},null,"Hours Worked",null,{"$f":"IFERROR(INDEX(Employees[Reg Hours Worked],Stub),\"\")","v":40}]
[null,null,"Hourly Rate",null,{"$f":"IFERROR(INDEX(Employees[Hourly Wage],Stub),\"\")","v":8},null,"Overtime Rate",null,{"$f":"IFERROR(INDEX(Employees[Overtime Rate],Stub),\"\")","v":0},null,"Sick Hours",null,{"$f":"IFERROR(INDEX(Employees[Sick\nHours],Stub),\"\")","v":0}]
[null,null,"Social Security Tax",null,{"$f":"IFERROR(INDEX(Employees[Soc. Security\nTax],Stub)  *  INDEX(Employees[Gross\nPay],Stub),\"\")","v":20.16},null,"Federal Income Tax ",null,{"$f":"IFERROR(INDEX(Employees[Federal\nIncome Tax],Stub)  *  INDEX(Employees[Gross\nPay],Stub),\"\")","v":89.600000000000009},null,"Vacation Hours",null,{"$f":"IFERROR(INDEX(Employees[Vacation Hours],Stub),\"\")","v":0}]
[null,null,"Medicare Tax ",null,{"$f":"IFERROR(INDEX(Employees[Medicare\nTax],Stub)  *  INDEX(Employees[Gross\nPay],Stub),\"\")","v":4.6400000000000006},null,"State Tax ",null,{"$f":"IFERROR(INDEX(Employees[State\nTax],Stub)  *  INDEX(Employees[Gross\nPay],Stub),\"\")","v":7.3599999999999994},null,"Overtime Hours",null,{"$f":"IFERROR(INDEX(Employees[Overtime Hours],Stub),\"\")","v":0}]
[null,null,"Insurance Deduction",null,{"$f":"IFERROR(INDEX(Employees[Insurance Deduction],Stub),\"\")","v":0},null,"Other Regular Deduction",null,{"$f":"IFERROR(INDEX(Employees[Other Reg. Deduction],Stub),\"\")","v":10},null,"Gross Pay",null,{"$f":"IFERROR(INDEX(Employees[Gross\nPay],Stub),\"\")","v":320}]
[null,null,"Total Taxes and",null,{"$f":"IFERROR(INDEX(Employees[Taxes and Ded''s],Stub),\"\")","v":131.76000000000002},null,"Other Deduction",null,{"$f":"IFERROR(INDEX(Employees[Other\nDed''s],Stub),\"\")","v":0},null,"Total Taxes and Deductions ",null,{"$f":"IFERROR(INDEX(Employees[Taxes and Ded''s],Stub)  +  INDEX(Employees[Other\nDed''s],Stub),\"\")","v":131.76000000000002}]
[null,null,"Regular Deductions "]
[null,null,null,null,null,null,null,null,null,null,"NET PAY",null,{"$f":"IFERROR(INDEX(Employees[Net Pay],Stub),\"\")","v":188.23999999999998}]
[]
[]
[null,null,{"$f":"CompanyName","v":"ADVENTURE WORKS"}]
[null,null,"PEROID",{"$f":"PeriodEnding","v":41372},null,null,"NAME",{"$f":"IFERROR(INDEX(Employees[Employee Name],Stub),\"\")","v":"Denise Smith"},null,null,"EMPLOYEE ID",{"$f":"IFERROR(INDEX(Employees[ID],Stub),\"\")","v":1003}]
[null,null,"Tax Status",null,{"$f":"IFERROR(INDEX(Employees[Tax\nStatus],Stub),\"\")","v":1},null,"Federal Allowance (From W-4)",null,{"$f":"IFERROR(INDEX(Employees[Federal\nAllow.],Stub),\"\")","v":3},null,"Hours Worked",null,{"$f":"IFERROR(INDEX(Employees[Reg Hours Worked],Stub),\"\")","v":35}]
[null,null,"Hourly Rate",null,{"$f":"IFERROR(INDEX(Employees[Hourly Wage],Stub),\"\")","v":14},null,"Overtime Rate",null,{"$f":"IFERROR(INDEX(Employees[Overtime Rate],Stub),\"\")","v":0},null,"Sick Hours",null,{"$f":"IFERROR(INDEX(Employees[Sick\nHours],Stub),\"\")","v":0}]
[null,null,"Social Security Tax",null,{"$f":"IFERROR(INDEX(Employees[Soc. Security\nTax],Stub)  *  INDEX(Employees[Gross\nPay],Stub),\"\")","v":33.515999999999998},null,"Federal Income Tax ",null,{"$f":"IFERROR(INDEX(Employees[Federal\nIncome Tax],Stub)  *  INDEX(Employees[Gross\nPay],Stub),\"\")","v":148.96},null,"Vacation Hours",null,{"$f":"IFERROR(INDEX(Employees[Vacation Hours],Stub),\"\")","v":3}]
[null,null,"Medicare Tax ",null,{"$f":"IFERROR(INDEX(Employees[Medicare\nTax],Stub)  *  INDEX(Employees[Gross\nPay],Stub),\"\")","v":7.7140000000000004},null,"State Tax ",null,{"$f":"IFERROR(INDEX(Employees[State\nTax],Stub)  *  INDEX(Employees[Gross\nPay],Stub),\"\")","v":12.236000000000001},null,"Overtime Hours",null,{"$f":"IFERROR(INDEX(Employees[Overtime Hours],Stub),\"\")","v":0}]
[null,null,"Insurance Deduction",null,{"$f":"IFERROR(INDEX(Employees[Insurance Deduction],Stub),\"\")","v":18},null,"Other Regular Deduction",null,{"$f":"IFERROR(INDEX(Employees[Other Reg. Deduction],Stub),\"\")","v":20},null,"Gross Pay",null,{"$f":"IFERROR(INDEX(Employees[Gross\nPay],Stub),\"\")","v":532}]
[null,null,"Total Taxes and",null,{"$f":"IFERROR(INDEX(Employees[Taxes and Ded''s],Stub),\"\")","v":240.42600000000004},null,"Other Deduction",null,{"$f":"IFERROR(INDEX(Employees[Other\nDed''s],Stub),\"\")","v":0},null,"Total Taxes and Deductions ",null,{"$f":"IFERROR(INDEX(Employees[Taxes and Ded''s],Stub)  +  INDEX(Employees[Other\nDed''s],Stub),\"\")","v":240.42600000000004}]
[null,null,"Regular Deductions "]
[null,null,null,null,null,null,null,null,null,null,"NET PAY",null,{"$f":"IFERROR(INDEX(Employees[Net Pay],Stub),\"\")","v":291.57399999999996}]
[]
[]
[null,null,{"$f":"CompanyName","v":"ADVENTURE WORKS"}]
[null,null,"PERIOD",{"$f":"PeriodEnding","v":41372},null,null,"NAME",{"$f":"IFERROR(INDEX(Employees[Employee Name],Stub),\"\")","v":"Sebastien Motte"},null,null,"EMPLOYEE ID",{"$f":"IFERROR(INDEX(Employees[ID],Stub),\"\")","v":1008}]
[null,null,"Tax Status",null,{"$f":"IFERROR(INDEX(Employees[Tax\nStatus],Stub),\"\")","v":1},null,"Federal Allowance (From W-4)",null,{"$f":"IFERROR(INDEX(Employees[Federal\nAllow.],Stub),\"\")","v":0},null,"Hours Worked",null,{"$f":"IFERROR(INDEX(Employees[Reg Hours Worked],Stub),\"\")","v":50}]
[null,null,"Hourly Rate",null,{"$f":"IFERROR(INDEX(Employees[Hourly Wage],Stub),\"\")","v":20},null,"Overtime Rate",null,{"$f":"IFERROR(INDEX(Employees[Overtime Rate],Stub),\"\")","v":0},null,"Sick Hours",null,{"$f":"IFERROR(INDEX(Employees[Sick\nHours],Stub),\"\")","v":1}]
[null,null,"Social Security Tax",null,{"$f":"IFERROR(INDEX(Employees[Soc. Security\nTax],Stub)  *  INDEX(Employees[Gross\nPay],Stub),\"\")","v":70.56},null,"Federal Income Tax ",null,{"$f":"IFERROR(INDEX(Employees[Federal\nIncome Tax],Stub)  *  INDEX(Employees[Gross\nPay],Stub),\"\")","v":313.60000000000002},null,"Vacation Hours",null,{"$f":"IFERROR(INDEX(Employees[Vacation Hours],Stub),\"\")","v":5}]
[null,null,"Medicare Tax ",null,{"$f":"IFERROR(INDEX(Employees[Medicare\nTax],Stub)  *  INDEX(Employees[Gross\nPay],Stub),\"\")","v":16.240000000000002},null,"State Tax ",null,{"$f":"IFERROR(INDEX(Employees[State\nTax],Stub)  *  INDEX(Employees[Gross\nPay],Stub),\"\")","v":25.759999999999998},null,"Overtime Hours",null,{"$f":"IFERROR(INDEX(Employees[Overtime Hours],Stub),\"\")","v":0}]
[null,null,"Insurance Deduction",null,{"$f":"IFERROR(INDEX(Employees[Insurance Deduction],Stub),\"\")","v":15},null,"Other Regular Deduction",null,{"$f":"IFERROR(INDEX(Employees[Other Reg. Deduction],Stub),\"\")","v":0},null,"Gross Pay",null,{"$f":"IFERROR(INDEX(Employees[Gross\nPay],Stub),\"\")","v":1120}]
[null,null,"Total Taxes and",null,{"$f":"IFERROR(INDEX(Employees[Taxes and Ded''s],Stub),\"\")","v":441.16000000000008},null,"Other Deduction",null,{"$f":"IFERROR(INDEX(Employees[Other\nDed''s],Stub),\"\")","v":0},null,"Total Taxes and Deductions ",null,{"$f":"IFERROR(INDEX(Employees[Taxes and Ded''s],Stub)  +  INDEX(Employees[Other\nDed''s],Stub),\"\")","v":441.16000000000008}]
[null,null,"Regular Deductions "]
[null,null,null,null,null,null,null,null,null,null,"NET PAY",null,{"$f":"IFERROR(INDEX(Employees[Net Pay],Stub),\"\")","v":678.83999999999992}]